[Event "Titled Tuesday Blitz June 6 Early 2023"]
[White "Mejia, Cherry Ann"]
[Black "Bruedigam, Martin"]
[WhiteFideId "5206880"]
[BlackFideId "24608033"]
[WhiteElo "2007"]
[BlackElo "2331"]
[Result "1/2-1/2"]
[Round "10"]
[TimeControl "180+2"]
[Date "2023.06.06"]
[WhiteClock "0:00:10"]
[BlackClock "0:00:58"]
[Board "107"]

1. e4 {[%clk 0:02:58]}  c6 {[%clk 0:02:59]} 2. d4 {[%clk 0:02:58]}  d5 {[%clk 0:03:00]} 3. Nd2 {[%clk 0:02:58]}  dxe4 {[%clk 0:02:59]} 4. Nxe4 {[%clk 0:02:59]}  Bf5 {[%clk 0:02:59]} 5. Ng3 {[%clk 0:02:59]}  Bg6 {[%clk 0:02:59]} 6. Nf3 {[%clk 0:02:59]}  Nd7 {[%clk 0:02:59]} 7. h4 {[%clk 0:02:59]}  h6 {[%clk 0:03:00]} 8. h5 {[%clk 0:03:00]}  Bh7 {[%clk 0:03:00]} 9. Bd3 {[%clk 0:03:01]}  Bxd3 {[%clk 0:03:00]} 10. Qxd3 {[%clk 0:03:02]}  e6 {[%clk 0:03:00]} 11. Bd2 {[%clk 0:03:02]}  Ngf6 {[%clk 0:03:00]} 12. O-O-O {[%clk 0:03:02]}  Be7 {[%clk 0:03:01]} 13. Ne4 {[%clk 0:03:02]}  Nxe4 {[%clk 0:03:00]} 14. Qxe4 {[%clk 0:03:03]}  Nf6 {[%clk 0:03:00]} 15. Qe2 {[%clk 0:03:03]}  Qd5 {[%clk 0:03:00]} 16. c4 {[%clk 0:03:04]}  Qe4 {[%clk 0:03:00]} 17. Qxe4 {[%clk 0:03:05]}  Nxe4 {[%clk 0:03:00]} 18. Be3 {[%clk 0:03:05]}  f5 {[%clk 0:03:00]} 19. Ne5 {[%clk 0:03:02]}  Bg5 {[%clk 0:02:59]} 20. f4 {[%clk 0:02:51]}  Bf6 {[%clk 0:02:56]} 21. g4 {[%clk 0:02:46]}  O-O-O {[%clk 0:02:29]} 22. Nf7 {[%clk 0:02:43]}  Rhf8 {[%clk 0:02:28]} 23. Nxd8 {[%clk 0:02:43]}  Kxd8 {[%clk 0:02:28]} 24. d5 {[%clk 0:02:36]}  exd5 {[%clk 0:02:24]} 25. cxd5 {[%clk 0:02:35]}  c5 {[%clk 0:02:21]} 26. d6 {[%clk 0:02:15]}  Kd7 {[%clk 0:02:15]} 27. Rd5 {[%clk 0:02:08]}  b6 {[%clk 0:02:13]} 28. Rxf5 {[%clk 0:02:04]}  Ng3 {[%clk 0:02:12]} 29. Rxf6 {[%clk 0:01:27]}  Rxf6 {[%clk 0:02:12]} 30. Re1 {[%clk 0:01:17]}  Kxd6 {[%clk 0:01:52]} 31. Bf2 {[%clk 0:01:13]}  Nf5 {[%clk 0:01:47]} 32. gxf5 {[%clk 0:01:12]}  Rxf5 {[%clk 0:01:48]} 33. Bg3 {[%clk 0:01:09]}  Rxh5 {[%clk 0:01:47]} 34. Re8 {[%clk 0:01:03]}  Rh3 {[%clk 0:01:39]} 35. Be1 {[%clk 0:00:55]}  g5 {[%clk 0:01:39]} 36. fxg5 {[%clk 0:00:53]}  hxg5 {[%clk 0:01:40]} 37. Rg8 {[%clk 0:00:53]}  Rh5 {[%clk 0:01:40]} 38. Bd2 {[%clk 0:00:51]}  Kc6 {[%clk 0:01:38]} 39. Bxg5 {[%clk 0:00:47]}  Kb5 {[%clk 0:01:33]} 40. Bd2 {[%clk 0:00:43]}  a5 {[%clk 0:01:31]} 41. Rg6 {[%clk 0:00:43]}  a4 {[%clk 0:01:31]} 42. a3 {[%clk 0:00:42]}  Rd5 {[%clk 0:01:30]} 43. Kc2 {[%clk 0:00:42]}  Rf5 {[%clk 0:01:30]} 44. Rg3 {[%clk 0:00:37]}  Rf2 {[%clk 0:01:28]} 45. Kd3 {[%clk 0:00:34]}  Rf5 {[%clk 0:01:28]} 46. Be3 {[%clk 0:00:30]}  Rf6 {[%clk 0:01:27]} 47. Kc3 {[%clk 0:00:29]}  Rd6 {[%clk 0:01:26]} 48. Rg4 {[%clk 0:00:26]}  Re6 {[%clk 0:01:26]} 49. Bd2 {[%clk 0:00:23]}  Rd6 {[%clk 0:01:26]} 50. Kc2 {[%clk 0:00:22]}  Re6 {[%clk 0:01:26]} 51. Bc3 {[%clk 0:00:22]}  Rd6 {[%clk 0:01:25]} 52. b3 {[%clk 0:00:20]}  axb3+ {[%clk 0:01:25]} 53. Kxb3 {[%clk 0:00:21]}  Ka6 {[%clk 0:01:13]} 54. Rg8 {[%clk 0:00:18]}  Rh6 {[%clk 0:01:06]} 55. Ra8+ {[%clk 0:00:18]}  Kb7 {[%clk 0:01:07]} 56. Rg8 {[%clk 0:00:18]}  Rh4 {[%clk 0:01:07]} 57. a4 {[%clk 0:00:16]}  Re4 {[%clk 0:01:05]} 58. Rg6 {[%clk 0:00:15]}  Rf4 {[%clk 0:01:02]} 59. Be5 {[%clk 0:00:15]}  Rb4+ {[%clk 0:01:01]} 60. Ka3 {[%clk 0:00:14]}  Re4 {[%clk 0:01:00]} 61. Bg3 {[%clk 0:00:13]}  Re3+ {[%clk 0:01:00]} 62. Kb2 {[%clk 0:00:13]}  Re4 {[%clk 0:01:00]} 63. Kb3 {[%clk 0:00:12]}  Re3+ {[%clk 0:01:01]} 64. Kc4 {[%clk 0:00:12]}  Re4+ {[%clk 0:01:01]} 65. Kb3 {[%clk 0:00:12]}  Re3+ {[%clk 0:01:01]} 66. Kb2 {[%clk 0:00:13]}  Re2+ {[%clk 0:01:00]} 67. Kc3 {[%clk 0:00:10]}  Re3+ {[%clk 0:00:58]} 68. Kb2 {[%clk 0:00:10]} 1/2-1/2


[Site "https://www.chess.com"]

[Event "Titled Tuesday Blitz June 6 Early 2023"]
[White "Sargissyan, Sargis"]
[Black "Khromkin, Andrey"]
[WhiteFideId "13303210"]
[BlackFideId "4154126"]
[WhiteElo "2109"]
[BlackElo "2439"]
[Result "0-1"]
[Round "10"]
[TimeControl "180+2"]
[Date "2023.06.06"]
[WhiteClock "0:00:06"]
[BlackClock "0:00:11"]
[Board "108"]

1. e4 {[%clk 0:03:00]}  c5 {[%clk 0:02:55]} 2. Nc3 {[%clk 0:03:00]}  Nc6 {[%clk 0:02:52]} 3. Bb5 {[%clk 0:03:00]}  g6 {[%clk 0:02:49]} 4. f4 {[%clk 0:02:58]}  Nd4 {[%clk 0:02:48]} 5. Bc4 {[%clk 0:02:57]}  e6 {[%clk 0:02:47]} 6. Nf3 {[%clk 0:02:56]}  Ne7 {[%clk 0:02:48]} 7. O-O {[%clk 0:02:53]}  d5 {[%clk 0:02:46]} 8. exd5 {[%clk 0:02:41]}  exd5 {[%clk 0:02:46]} 9. Nxd4 {[%clk 0:01:57]}  cxd4 {[%clk 0:02:22]} 10. Bb5+ {[%clk 0:01:54]}  Bd7 {[%clk 0:02:19]} 11. Bxd7+ {[%clk 0:01:53]}  Qxd7 {[%clk 0:02:19]} 12. Ne2 {[%clk 0:01:53]}  Bg7 {[%clk 0:02:20]} 13. d3 {[%clk 0:01:52]}  O-O {[%clk 0:02:18]} 14. Ng3 {[%clk 0:01:53]}  Nf5 {[%clk 0:02:11]} 15. Qg4 {[%clk 0:01:52]}  Rac8 {[%clk 0:02:12]} 16. Nxf5 {[%clk 0:01:23]}  Qxf5 {[%clk 0:02:11]} 17. Qxf5 {[%clk 0:01:23]}  gxf5 {[%clk 0:02:12]} 18. Rf2 {[%clk 0:01:23]}  Rc6 {[%clk 0:02:02]} 19. b3 {[%clk 0:01:05]}  Rfc8 {[%clk 0:02:01]} 20. Ba3 {[%clk 0:01:06]}  Rxc2 {[%clk 0:02:02]} 21. Rxc2 {[%clk 0:01:05]}  Rxc2 {[%clk 0:02:02]} 22. Re1 {[%clk 0:01:06]}  Bf6 {[%clk 0:01:53]} 23. Re8+ {[%clk 0:00:37]}  Kg7 {[%clk 0:01:52]} 24. Bf8+ {[%clk 0:00:38]}  Kg6 {[%clk 0:01:52]} 25. Bb4 {[%clk 0:00:32]}  Rxa2 {[%clk 0:01:42]} 26. Rg8+ {[%clk 0:00:31]}  Kh5 {[%clk 0:01:37]} 27. h3 {[%clk 0:00:31]}  Rb2 {[%clk 0:01:10]} 28. Be1 {[%clk 0:00:27]}  Rxb3 {[%clk 0:01:01]} 29. g4+ {[%clk 0:00:27]}  fxg4 {[%clk 0:01:01]} 30. hxg4+ {[%clk 0:00:28]}  Kh6 {[%clk 0:00:59]} 31. g5+ {[%clk 0:00:29]}  Bxg5 {[%clk 0:01:00]} 32. fxg5+ {[%clk 0:00:29]}  Kh5 {[%clk 0:01:00]} 33. Rg7 {[%clk 0:00:22]}  Rxd3 {[%clk 0:00:55]} 34. Kg2 {[%clk 0:00:19]}  b5 {[%clk 0:00:51]} 35. Rxf7 {[%clk 0:00:17]}  a5 {[%clk 0:00:48]} 36. Bxa5 {[%clk 0:00:16]}  Kxg5 {[%clk 0:00:46]} 37. Rxh7 {[%clk 0:00:16]}  Kf5 {[%clk 0:00:44]} 38. Re7 {[%clk 0:00:15]}  Re3 {[%clk 0:00:42]} 39. Rd7 {[%clk 0:00:12]}  Ke4 {[%clk 0:00:42]} 40. Kf2 {[%clk 0:00:13]}  Ra3 {[%clk 0:00:41]} 41. Bb4 {[%clk 0:00:11]}  Ra2+ {[%clk 0:00:41]} 42. Ke1 {[%clk 0:00:11]}  Rb2 {[%clk 0:00:37]} 43. Ba5 {[%clk 0:00:11]}  Ke3 {[%clk 0:00:34]} 44. Kd1 {[%clk 0:00:10]}  Ra2 {[%clk 0:00:31]} 45. Bb4 {[%clk 0:00:09]}  Ke4 {[%clk 0:00:32]} 46. Rh7 {[%clk 0:00:09]}  Kd3 {[%clk 0:00:31]} 47. Rh3+ {[%clk 0:00:08]}  Kc4 {[%clk 0:00:32]} 48. Bd6 {[%clk 0:00:09]}  b4 {[%clk 0:00:32]} 49. Kc1 {[%clk 0:00:08]}  b3 {[%clk 0:00:32]} 50. Kb1 {[%clk 0:00:09]}  Re2 {[%clk 0:00:28]} 51. Kc1 {[%clk 0:00:08]}  d3 {[%clk 0:00:26]} 52. Bf8 {[%clk 0:00:08]}  Rc2+ {[%clk 0:00:18]} 53. Kb1 {[%clk 0:00:08]}  d2 {[%clk 0:00:17]} 54. Rh1 {[%clk 0:00:08]}  d4 {[%clk 0:00:17]} 55. Ba3 {[%clk 0:00:07]}  d3 {[%clk 0:00:17]} 56. Bb2 {[%clk 0:00:08]}  Kd5 {[%clk 0:00:12]} 57. Rc1 {[%clk 0:00:06]}  dxc1=Q+ {[%clk 0:00:11]} 0-1


[Site "https://www.chess.com"]

[Event "Titled Tuesday Blitz June 6 Early 2023"]
[White "Llanos, Guillermo"]
[Black "Womacka, Mathias"]
[WhiteFideId "100358"]
[BlackFideId "4611390"]
[WhiteElo "2210"]
[BlackElo "2377"]
[Result "1-0"]
[Round "10"]
[TimeControl "180+2"]
[Date "2023.06.06"]
[WhiteClock "0:00:13"]
[BlackClock "0:00:15"]
[Board "109"]

1. Nf3 {[%clk 0:03:00]}  c5 {[%clk 0:02:59]} 2. g3 {[%clk 0:02:59]}  Nc6 {[%clk 0:02:57]} 3. Bg2 {[%clk 0:02:59]}  g6 {[%clk 0:02:58]} 4. d4 {[%clk 0:02:53]}  cxd4 {[%clk 0:02:57]} 5. Nxd4 {[%clk 0:02:53]}  Bg7 {[%clk 0:02:58]} 6. Nxc6 {[%clk 0:02:52]}  bxc6 {[%clk 0:02:59]} 7. O-O {[%clk 0:02:52]}  Nf6 {[%clk 0:02:59]} 8. c4 {[%clk 0:02:51]}  O-O {[%clk 0:02:58]} 9. Nc3 {[%clk 0:02:50]}  Qc7 {[%clk 0:02:32]} 10. Qc2 {[%clk 0:02:47]}  d6 {[%clk 0:02:32]} 11. e4 {[%clk 0:02:22]}  Be6 {[%clk 0:02:23]} 12. b3 {[%clk 0:02:14]}  a5 {[%clk 0:02:23]} 13. Bf4 {[%clk 0:02:01]}  Nh5 {[%clk 0:01:57]} 14. Be3 {[%clk 0:01:51]}  a4 {[%clk 0:01:57]} 15. Rac1 {[%clk 0:01:45]}  axb3 {[%clk 0:01:56]} 16. axb3 {[%clk 0:01:45]}  Nf6 {[%clk 0:01:53]} 17. h3 {[%clk 0:01:40]}  Nd7 {[%clk 0:01:51]} 18. Qd2 {[%clk 0:01:31]}  Rfb8 {[%clk 0:01:45]} 19. Rb1 {[%clk 0:01:20]}  Ra3 {[%clk 0:01:25]} 20. Nd5 {[%clk 0:00:58]}  cxd5 {[%clk 0:01:04]} 21. cxd5 {[%clk 0:00:56]}  Bxh3 {[%clk 0:01:03]} 22. Bxh3 {[%clk 0:00:55]}  Raxb3 {[%clk 0:01:03]} 23. Rxb3 {[%clk 0:00:52]}  Rxb3 {[%clk 0:01:04]} 24. Rc1 {[%clk 0:00:52]}  Qb7 {[%clk 0:01:00]} 25. Qa5 {[%clk 0:00:47]}  Rb1 {[%clk 0:00:46]} 26. Bxd7 {[%clk 0:00:38]}  Rxc1+ {[%clk 0:00:41]} 27. Bxc1 {[%clk 0:00:38]}  h5 {[%clk 0:00:33]} 28. Qd8+ {[%clk 0:00:35]}  Kh7 {[%clk 0:00:32]} 29. Qxe7 {[%clk 0:00:18]}  Qb1 {[%clk 0:00:32]} 30. Qg5 {[%clk 0:00:17]}  Qxe4 {[%clk 0:00:27]} 31. Bc6 {[%clk 0:00:15]}  f6 {[%clk 0:00:25]} 32. Qf4 {[%clk 0:00:15]}  Qe1+ {[%clk 0:00:22]} 33. Kg2 {[%clk 0:00:15]}  g5 {[%clk 0:00:20]} 34. Qf5+ {[%clk 0:00:14]}  Kh6 {[%clk 0:00:19]} 35. Be3 {[%clk 0:00:14]}  Qc3 {[%clk 0:00:16]} 36. Be8 {[%clk 0:00:13]}  Qe5 {[%clk 0:00:15]} 37. Qg6# {[%clk 0:00:13]} 1-0


[Site "https://www.chess.com"]

[Event "Titled Tuesday Blitz June 6 Early 2023"]
[White "Ziatdinov, Raset"]
[Black "Makhmudov, Shukhrat"]
[WhiteFideId "2015323"]
[BlackFideId "14200775"]
[WhiteElo "2220"]
[BlackElo "2135"]
[Result "0-1"]
[Round "10"]
[TimeControl "180+2"]
[Date "2023.06.06"]
[WhiteClock "0:01:14"]
[BlackClock "0:01:35"]
[Board "110"]

1. e4 {[%clk 0:02:55]}  e5 {[%clk 0:03:00]} 2. Nf3 {[%clk 0:02:51]}  Nc6 {[%clk 0:02:56]} 3. Bb5 {[%clk 0:02:50]}  a6 {[%clk 0:02:57]} 4. Ba4 {[%clk 0:02:50]}  Nf6 {[%clk 0:02:57]} 5. O-O {[%clk 0:02:51]}  Be7 {[%clk 0:02:57]} 6. Re1 {[%clk 0:02:51]}  b5 {[%clk 0:02:58]} 7. Bb3 {[%clk 0:02:51]}  O-O {[%clk 0:02:59]} 8. c3 {[%clk 0:02:52]}  d5 {[%clk 0:02:59]} 9. exd5 {[%clk 0:02:51]}  Nxd5 {[%clk 0:03:00]} 10. Nxe5 {[%clk 0:02:51]}  Nxe5 {[%clk 0:03:01]} 11. Rxe5 {[%clk 0:02:51]}  c6 {[%clk 0:03:01]} 12. d4 {[%clk 0:02:50]}  Bd6 {[%clk 0:03:01]} 13. Re1 {[%clk 0:02:45]}  Qh4 {[%clk 0:03:01]} 14. g3 {[%clk 0:02:29]}  Qh3 {[%clk 0:03:01]} 15. Qf3 {[%clk 0:02:16]}  Bg4 {[%clk 0:03:00]} 16. Qg2 {[%clk 0:02:14]}  Qh5 {[%clk 0:02:57]} 17. Nd2 {[%clk 0:02:02]}  Rae8 {[%clk 0:02:55]} 18. Re4 {[%clk 0:01:56]}  Bh3 {[%clk 0:02:29]} 19. Qh1 {[%clk 0:01:48]}  f5 {[%clk 0:02:01]} 20. Re3 {[%clk 0:01:31]}  f4 {[%clk 0:01:51]} 21. Rxe8 {[%clk 0:01:25]}  Rxe8 {[%clk 0:01:49]} 22. Nf3 {[%clk 0:01:25]}  Qxf3 {[%clk 0:01:47]} 23. Bxd5+ {[%clk 0:01:20]}  cxd5 {[%clk 0:01:43]} 24. Bxf4 {[%clk 0:01:12]}  Qxh1+ {[%clk 0:01:42]} 25. Kxh1 {[%clk 0:01:13]}  Bxf4 {[%clk 0:01:42]} 26. gxf4 {[%clk 0:01:14]}  Re2 {[%clk 0:01:35]} 0-1


[Site "https://www.chess.com"]

[Event "Titled Tuesday Blitz June 6 Early 2023"]
[White "Samaganova, Aleksandra"]
[Black "Begunov, Konstantin"]
[WhiteFideId "13800221"]
[BlackFideId "4118510"]
[WhiteElo "1858"]
[BlackElo "1993"]
[Result "1-0"]
[Round "10"]
[TimeControl "180+2"]
[Date "2023.06.06"]
[WhiteClock "0:00:13"]
[BlackClock "0:00:04"]
[Board "113"]

1. c4 {[%clk 0:03:00]}  c6 {[%clk 0:02:59]} 2. Nf3 {[%clk 0:03:00]}  d5 {[%clk 0:03:00]} 3. e3 {[%clk 0:02:59]}  Nf6 {[%clk 0:03:00]} 4. Nc3 {[%clk 0:02:59]}  a6 {[%clk 0:03:00]} 5. b3 {[%clk 0:02:59]}  Bg4 {[%clk 0:03:00]} 6. Be2 {[%clk 0:02:57]}  e6 {[%clk 0:02:57]} 7. Bb2 {[%clk 0:02:56]}  Nbd7 {[%clk 0:02:58]} 8. O-O {[%clk 0:02:55]}  Bd6 {[%clk 0:02:58]} 9. d4 {[%clk 0:02:51]}  Qe7 {[%clk 0:02:57]} 10. Qc2 {[%clk 0:02:29]}  Bf5 {[%clk 0:02:47]} 11. Bd3 {[%clk 0:02:27]}  Bxd3 {[%clk 0:02:47]} 12. Qxd3 {[%clk 0:02:27]}  O-O {[%clk 0:02:35]} 13. e4 {[%clk 0:02:26]}  dxe4 {[%clk 0:02:35]} 14. Nxe4 {[%clk 0:02:25]}  Ba3 {[%clk 0:02:32]} 15. Nxf6+ {[%clk 0:02:16]}  Nxf6 {[%clk 0:02:28]} 16. Bc3 {[%clk 0:02:14]}  Rfd8 {[%clk 0:02:23]} 17. Qc2 {[%clk 0:02:00]}  a5 {[%clk 0:02:05]} 18. Rab1 {[%clk 0:01:42]}  Bb4 {[%clk 0:02:04]} 19. Ba1 {[%clk 0:01:36]}  b5 {[%clk 0:01:45]} 20. Ne5 {[%clk 0:01:31]}  Rdc8 {[%clk 0:01:29]} 21. Rbc1 {[%clk 0:01:22]}  Qd8 {[%clk 0:01:14]} 22. Rfd1 {[%clk 0:01:05]}  Ba3 {[%clk 0:01:14]} 23. Rb1 {[%clk 0:01:00]}  Bd6 {[%clk 0:01:13]} 24. Nf3 {[%clk 0:00:57]}  a4 {[%clk 0:01:08]} 25. Qe2 {[%clk 0:00:48]}  axb3 {[%clk 0:01:07]} 26. axb3 {[%clk 0:00:48]}  Qa5 {[%clk 0:01:02]} 27. d5 {[%clk 0:00:41]}  cxd5 {[%clk 0:00:19]} 28. Bxf6 {[%clk 0:00:40]}  gxf6 {[%clk 0:00:20]} 29. cxd5 {[%clk 0:00:29]}  e5 {[%clk 0:00:15]} 30. Nh4 {[%clk 0:00:28]}  Qb4 {[%clk 0:00:12]} 31. Nf5 {[%clk 0:00:24]}  Bf8 {[%clk 0:00:12]} 32. d6 {[%clk 0:00:20]}  Rd8 {[%clk 0:00:10]} 33. d7 {[%clk 0:00:19]}  Ra7 {[%clk 0:00:09]} 34. Rd3 {[%clk 0:00:14]}  Raxd7 {[%clk 0:00:06]} 35. Rg3+ {[%clk 0:00:14]}  Kh8 {[%clk 0:00:06]} 36. h3 {[%clk 0:00:14]}  Qf4 {[%clk 0:00:04]} 37. Qh5 {[%clk 0:00:13]} 1-0


[Site "https://www.chess.com"]

[Event "Titled Tuesday Blitz June 6 Early 2023"]
[White "Sanchez, Robert"]
[Black "Camilla_Lee"]
[WhiteFideId "2034360"]
[WhiteElo "1830"]
[BlackElo "2488"]
[Result "0-1"]
[Round "10"]
[TimeControl "180+2"]
[Date "2023.06.06"]
[WhiteClock "0:00:20"]
[BlackClock "0:01:13"]
[Board "116"]

1. Nf3 {[%clk 0:03:00]}  Nf6 {[%clk 0:02:59]} 2. e3 {[%clk 0:02:55]}  g6 {[%clk 0:02:57]} 3. c4 {[%clk 0:02:55]}  Bg7 {[%clk 0:02:50]} 4. Nc3 {[%clk 0:02:56]}  d5 {[%clk 0:02:49]} 5. d4 {[%clk 0:02:56]}  O-O {[%clk 0:02:49]} 6. cxd5 {[%clk 0:02:55]}  Nxd5 {[%clk 0:02:48]} 7. Be2 {[%clk 0:02:55]}  c5 {[%clk 0:02:48]} 8. O-O {[%clk 0:02:55]}  cxd4 {[%clk 0:02:48]} 9. Nxd4 {[%clk 0:02:52]}  Nxc3 {[%clk 0:02:48]} 10. bxc3 {[%clk 0:02:53]}  Qa5 {[%clk 0:02:41]} 11. Qb3 {[%clk 0:02:46]}  Nd7 {[%clk 0:02:35]} 12. Ba3 {[%clk 0:02:41]}  Nc5 {[%clk 0:02:32]} 13. Qb4 {[%clk 0:02:33]}  Qxb4 {[%clk 0:02:30]} 14. Bxb4 {[%clk 0:02:34]}  Ne4 {[%clk 0:02:25]} 15. f3 {[%clk 0:02:23]}  Nd6 {[%clk 0:02:20]} 16. Nb5 {[%clk 0:02:03]}  Nxb5 {[%clk 0:02:11]} 17. Bxb5 {[%clk 0:02:02]}  Be6 {[%clk 0:02:12]} 18. Bxe7 {[%clk 0:01:54]}  Rfc8 {[%clk 0:02:12]} 19. a4 {[%clk 0:01:40]}  Bxc3 {[%clk 0:02:11]} 20. Rac1 {[%clk 0:01:38]}  Bd2 {[%clk 0:02:09]} 21. Rxc8+ {[%clk 0:01:37]}  Rxc8 {[%clk 0:02:09]} 22. e4 {[%clk 0:01:31]}  Be3+ {[%clk 0:02:07]} 23. Kh1 {[%clk 0:01:31]}  Kg7 {[%clk 0:02:07]} 24. f4 {[%clk 0:01:19]}  a6 {[%clk 0:02:07]} 25. f5 {[%clk 0:01:10]}  Bc4 {[%clk 0:01:59]} 26. f6+ {[%clk 0:01:06]}  Kh6 {[%clk 0:01:57]} 27. Bxc4 {[%clk 0:01:06]}  Rxc4 {[%clk 0:01:57]} 28. h3 {[%clk 0:01:02]}  Rxe4 {[%clk 0:01:52]} 29. g4 {[%clk 0:00:52]}  Rxa4 {[%clk 0:01:42]} 30. Kg2 {[%clk 0:00:41]}  g5 {[%clk 0:01:39]} 31. Rd1 {[%clk 0:00:33]}  Rd4 {[%clk 0:01:36]} 32. Re1 {[%clk 0:00:27]}  Bf4 {[%clk 0:01:28]} 33. Rb1 {[%clk 0:00:26]}  b5 {[%clk 0:01:15]} 34. Ra1 {[%clk 0:00:27]}  Rd2+ {[%clk 0:01:16]} 35. Kf3 {[%clk 0:00:26]}  Rd3+ {[%clk 0:01:16]} 36. Ke4 {[%clk 0:00:24]}  Re3+ {[%clk 0:01:15]} 37. Kd5 {[%clk 0:00:20]}  Rxh3 {[%clk 0:01:13]} 38. Rxa6 {[%clk 0:00:20]}  Rg3 {[%clk 0:01:13]} 0-1


[Site "https://www.chess.com"]

[Event "Titled Tuesday Blitz June 6 Early 2023"]
[White "Xu, Daniel"]
[Black "Levitan, Caleb Levi"]
[WhiteFideId "2627345"]
[BlackFideId "14332620"]
[WhiteElo "1980"]
[BlackElo "1963"]
[Result "1-0"]
[Round "10"]
[TimeControl "180+2"]
[Date "2023.06.06"]
[WhiteClock "0:01:18"]
[BlackClock "0:00:07"]
[Board "118"]

1. e4 {[%clk 0:03:00]}  e5 {[%clk 0:02:59]} 2. Nf3 {[%clk 0:03:01]}  Nc6 {[%clk 0:02:59]} 3. Bb5 {[%clk 0:03:01]}  a6 {[%clk 0:02:56]} 4. Ba4 {[%clk 0:03:01]}  Nf6 {[%clk 0:02:56]} 5. O-O {[%clk 0:03:01]}  Bc5 {[%clk 0:02:55]} 6. Re1 {[%clk 0:02:58]}  b5 {[%clk 0:02:54]} 7. Bb3 {[%clk 0:02:58]}  d6 {[%clk 0:02:54]} 8. d3 {[%clk 0:02:54]}  h6 {[%clk 0:02:46]} 9. c3 {[%clk 0:02:54]}  O-O {[%clk 0:02:44]} 10. h3 {[%clk 0:02:47]}  Bb6 {[%clk 0:02:42]} 11. Nbd2 {[%clk 0:02:45]}  Ne7 {[%clk 0:02:38]} 12. a4 {[%clk 0:02:41]}  Bb7 {[%clk 0:02:33]} 13. Nf1 {[%clk 0:02:35]}  Ng6 {[%clk 0:02:31]} 14. Ng3 {[%clk 0:02:35]}  d5 {[%clk 0:02:01]} 15. exd5 {[%clk 0:02:25]}  Bxd5 {[%clk 0:02:00]} 16. Nxe5 {[%clk 0:02:03]}  Bxb3 {[%clk 0:01:49]} 17. Qxb3 {[%clk 0:02:02]}  Nxe5 {[%clk 0:01:48]} 18. Rxe5 {[%clk 0:02:03]}  Qxd3 {[%clk 0:01:48]} 19. Be3 {[%clk 0:01:56]}  Bxe3 {[%clk 0:00:42]} 20. Rxe3 {[%clk 0:01:57]}  Qd5 {[%clk 0:00:40]} 21. Qb4 {[%clk 0:01:40]}  Qc6 {[%clk 0:00:31]} 22. Nf5 {[%clk 0:01:36]}  Rae8 {[%clk 0:00:20]} 23. Ne7+ {[%clk 0:01:35]}  Rxe7 {[%clk 0:00:21]} 24. Qxe7 {[%clk 0:01:30]}  Nd5 {[%clk 0:00:20]} 25. Qe4 {[%clk 0:01:30]}  bxa4 {[%clk 0:00:15]} 26. Rd3 {[%clk 0:01:27]}  Rd8 {[%clk 0:00:14]} 27. Rad1 {[%clk 0:01:26]}  Qb6 {[%clk 0:00:06]} 28. Rxd5 {[%clk 0:01:23]}  Rf8 {[%clk 0:00:07]} 29. Rd8 {[%clk 0:01:21]}  g6 {[%clk 0:00:06]} 30. Rxf8+ {[%clk 0:01:21]}  Kxf8 {[%clk 0:00:06]} 31. Rd8+ {[%clk 0:01:21]}  Kg7 {[%clk 0:00:07]} 32. Qe5+ {[%clk 0:01:18]} 1-0


[Site "https://www.chess.com"]

[Event "Titled Tuesday Blitz June 6 Early 2023"]
[White "Toktomushev, Teimur"]
[Black "agvania123"]
[WhiteFideId "14176726"]
[WhiteElo "2116"]
[BlackElo "2243"]
[Result "1-0"]
[Round "10"]
[TimeControl "180+2"]
[Date "2023.06.06"]
[WhiteClock "0:00:02"]
[BlackClock "0:00:01"]
[Board "119"]

1. d4 {[%clk 0:03:00]}  Nf6 {[%clk 0:02:59]} 2. c4 {[%clk 0:03:01]}  e6 {[%clk 0:02:59]} 3. Nf3 {[%clk 0:03:02]}  b6 {[%clk 0:02:59]} 4. g3 {[%clk 0:03:02]}  Bb7 {[%clk 0:02:59]} 5. Bg2 {[%clk 0:03:02]}  Be7 {[%clk 0:02:59]} 6. O-O {[%clk 0:03:03]}  O-O {[%clk 0:02:59]} 7. Re1 {[%clk 0:03:03]}  d5 {[%clk 0:02:59]} 8. cxd5 {[%clk 0:02:58]}  exd5 {[%clk 0:02:57]} 9. Bf4 {[%clk 0:02:57]}  Nbd7 {[%clk 0:02:57]} 10. Nc3 {[%clk 0:02:58]}  a6 {[%clk 0:02:54]} 11. Rc1 {[%clk 0:02:57]}  c5 {[%clk 0:02:52]} 12. dxc5 {[%clk 0:02:28]}  Nxc5 {[%clk 0:02:49]} 13. Nd4 {[%clk 0:02:20]}  Nfe4 {[%clk 0:02:34]} 14. Qc2 {[%clk 0:01:59]}  Bf6 {[%clk 0:02:30]} 15. Red1 {[%clk 0:01:59]}  Bxd4 {[%clk 0:02:11]} 16. Rxd4 {[%clk 0:01:58]}  Ne6 {[%clk 0:02:11]} 17. Rxd5 {[%clk 0:01:02]}  Bxd5 {[%clk 0:01:44]} 18. Nxd5 {[%clk 0:01:03]}  Nxf4 {[%clk 0:00:59]} 19. Nxf4 {[%clk 0:00:54]}  f5 {[%clk 0:00:44]} 20. Ne6 {[%clk 0:00:35]}  Rc8 {[%clk 0:00:22]} 21. Nxd8 {[%clk 0:00:27]}  Rxc2 {[%clk 0:00:21]} 22. Rxc2 {[%clk 0:00:28]}  Rxd8 {[%clk 0:00:21]} 23. Bxe4 {[%clk 0:00:13]}  fxe4 {[%clk 0:00:22]} 24. Kg2 {[%clk 0:00:07]}  Rd1 {[%clk 0:00:20]} 25. Rc6 {[%clk 0:00:06]}  b5 {[%clk 0:00:16]} 26. Rxa6 {[%clk 0:00:06]}  Rd2 {[%clk 0:00:17]} 27. e3 {[%clk 0:00:02]}  Rxb2 {[%clk 0:00:16]} 28. Rb6 {[%clk 0:00:02]}  b4 {[%clk 0:00:14]} 29. Rb5 {[%clk 0:00:02]}  g6 {[%clk 0:00:13]} 30. g4 {[%clk 0:00:02]}  h6 {[%clk 0:00:12]} 31. Kg3 {[%clk 0:00:03]}  g5 {[%clk 0:00:11]} 32. Rb6 {[%clk 0:00:02]}  Kg7 {[%clk 0:00:11]} 33. Ra6 {[%clk 0:00:03]}  Rc2 {[%clk 0:00:09]} 34. a3 {[%clk 0:00:02]}  Ra2 {[%clk 0:00:06]} 35. Rb6 {[%clk 0:00:01]}  bxa3 {[%clk 0:00:06]} 36. Ra6 {[%clk 0:00:02]}  Ra1 {[%clk 0:00:06]} 37. Ra4 {[%clk 0:00:02]}  Ra2 {[%clk 0:00:05]} 38. Kg2 {[%clk 0:00:02]}  Ra1 {[%clk 0:00:05]} 39. Rxe4 {[%clk 0:00:03]}  Rc1 {[%clk 0:00:04]} 40. Ra4 {[%clk 0:00:03]}  Rc3 {[%clk 0:00:04]} 41. h3 {[%clk 0:00:02]}  Kg6 {[%clk 0:00:04]} 42. Kf3 {[%clk 0:00:03]}  Rb3 {[%clk 0:00:04]} 43. Ra6+ {[%clk 0:00:03]}  Kg7 {[%clk 0:00:03]} 44. Ke4 {[%clk 0:00:03]}  Rb2 {[%clk 0:00:03]} 45. f4 {[%clk 0:00:03]}  Rb4+ {[%clk 0:00:02]} 46. Kf5 {[%clk 0:00:03]}  Rb5+ {[%clk 0:00:02]} 47. Ke6 {[%clk 0:00:02]}  Rb3 {[%clk 0:00:01]} 48. f5 {[%clk 0:00:01]}  Rxe3+ {[%clk 0:00:01]} 49. Kd5 {[%clk 0:00:02]} 1-0


[Site "https://www.chess.com"]